bitfinex/quotes_SOLUSD_20230116
["timestamp","ask_amount","ask_price","bid_price","bid_amount"]
[1673853128140,20.0,24.409,24.364,2.69206]
[1673853128354,20.0,24.409,24.37,19.17]
[1673853128567,20.0,24.409,24.372,20.0]
[1673853128782,40.62968933,24.408,24.373,20.0]
[1673853128968,20.0,24.407,24.374,20.0]
[1673853129176,40.62968933,24.408,24.375,20.0]
[1673853129617,20.0,24.407,24.376,20.0]
[1673853129809,40.62968933,24.408,24.377,20.0]
[1673853130142,40.62968933,24.408,24.378,20.0]
[1673853130340,0.0553464,24.408,24.378,20.0]
[1673853130552,0.0553464,24.408,24.379,20.0]
[1673853130868,46.40616893,24.407,24.379,20.0]
[1673853131290,20.0,24.406,24.379,20.0]
[1673853131707,20.0,24.406,24.377,20.0]
[1673853131917,20.0,24.406,24.378,20.0]
[1673853132332,66.24775093,24.406,24.379,20.0]
[1673853132560,66.24775093,24.406,24.377,20.0]
[1673853132975,66.24775093,24.406,24.375,20.0]
[1673853133700,46.24775093,24.406,24.376,40.41998055]
[1673853133910,20.0,24.405,24.376,40.41998055]
[1673853134137,20.0,24.405,24.377,20.0]
[1673853134336,51.8728836,24.404,24.374,20.0]
[1673853134544,20.0,24.403,24.375,20.0]
[1673853134965,20.0,24.401,24.375,20.0]
[1673853136762,75.91501427,24.4,24.366,20.0]
[1673853136952,20.0,24.401,24.367,20.0]
[1673853137158,19.11,24.42,24.376,38.52447902]
[1673853137375,20.0,24.417,24.377,20.0]
[1673853137603,43.6961436,24.415,24.377,40.0]
[1673853137919,20.0,24.413,24.379,20.0]
[1673853138137,20.0,24.413,24.38,19.11]
[1673853138439,20.0,24.413,24.382,20.0]
[1673853138635,63.18745993,24.413,24.381,19.26223951]
[1673853138843,63.18745993,24.413,24.371,20.0]
[1673853140324,20.0,24.413,24.371,20.0]
[1673853141155,20.0,24.413,24.373,20.0]
[1673853141373,20.0,24.413,24.38,18.95]
[1673853141587,66.34411993,24.413,24.38,18.95]
[1673853141803,20.0,24.413,24.381,20.0]
[1673853142011,20.0,24.413,24.373,20.0]
[1673853142428,20.0,24.411,24.373,20.0]
[1673853143048,20.0,24.411,24.38,18.93]
[1673853143270,64.57611993,24.411,24.38,18.93]
[1673853143687,18.98,24.43,24.38,18.93]
[1673853143901,20.0,24.437,24.391,20.0]
[1673853144226,20.0,24.437,24.392,20.0]
[1673853144957,20.0,24.43,24.39,19.11]
[1673853145178,19.11,24.42,24.37,18.93]
[1673853145388,48.99377126,24.421,24.38,19.11]
[1673853145575,20.0,24.42,24.38,19.11]
[1673853145785,20.0,24.418,24.38,19.11]
[1673853146221,50.90043793,24.417,24.38,19.11]
[1673853146540,20.0,24.418,24.38,19.11]
[1673853147253,45.4725046,24.417,24.38,19.11]
[1673853147679,20.0,24.416,24.38,19.11]
[1673853148107,45.4725046,24.415,24.38,19.11]
[1673853148322,20.0,24.414,24.38,19.11]
[1673853148747,20.0,24.412,24.382,20.0]
[1673853149149,20.0,24.412,24.383,20.0]
[1673853150106,20.0,24.412,24.382,20.0]
[1673853150525,20.0,24.416,24.382,20.0]
[1673853150847,43.98682993,24.414,24.382,20.0]
[1673853151055,20.0,24.416,24.382,20.0]
[1673853151615,20.0,24.416,24.38,19.11]
[1673853151921,20.0,24.416,24.39,18.95]
[1673853152321,20.0,24.416,24.38,19.11]
[1673853154217,20.0,24.416,24.381,20.0]
[1673853154637,20.0,24.416,24.382,20.0]
[1673853154862,20.0,24.416,24.383,20.0]
[1673853155912,20.0,24.414,24.372,20.0]
[1673853156123,20.0,24.414,24.373,20.0]
[1673853156124,147.6,24.414,24.373,20.0]
[1673853156315,147.6,24.414,24.35,19.11]
[1673853156316,18.98,24.4,24.35,19.11]
[1673853156526,2.68429,24.399,24.35,19.11]
[1673853156736,20.0,24.397,24.35,19.11]
[1673853156963,20.0,24.396,24.35,19.11]
[1673853157166,22.68429,24.395,24.35,19.11]
[1673853157380,20.0,24.394,24.35,19.11]
[1673853157579,22.68429,24.393,24.35,19.11]
[1673853157786,20.0,24.391,24.35,19.11]
[1673853157998,20.0,24.389,24.35,19.11]
[1673853158422,69.30692618,24.388,24.342,20.0]
[1673853158645,20.0,24.387,24.342,20.0]
[1673853160313,27.20820758,24.386,24.344,20.0]
[1673853160542,20.0,24.385,24.35,19.11]
[1673853160749,20.0,24.385,24.36,19.05]
[1673853161070,20.0,24.387,24.361,20.0]
[1673853161462,20.0,24.391,24.361,20.0]
[1673853161676,20.0,24.4,24.362,20.0]
[1673853161883,20.0,24.4,24.363,20.0]
[1673853162631,20.0,24.4,24.364,20.0]
[1673853162842,20.0,24.4,24.371,20.0]
[1673853163054,20.0,24.4,24.37,19.11]
[1673853163374,20.0,24.4,24.371,20.0]
[1673853166106,20.0,24.4,24.372,20.0]
[1673853166425,20.0,24.4,24.373,20.0]
[1673853166621,20.0,24.409,24.374,20.0]
[1673853166836,20.0,24.409,24.38,18.99]
[1673853167376,20.0,24.409,24.381,20.0]
[1673853167677,20.0,24.409,24.382,20.0]
[1673853167891,20.0,24.409,24.383,20.0]
[1673853169365,20.0,24.409,24.382,20.0]
[1673853169555,20.0,24.409,24.384,20.0]
[1673853169765,20.0,24.409,24.385,20.0]
[1673853170498,20.0,24.409,24.39,19.11]
[1673853170733,20.0,24.412,24.391,20.0]
[1673853171764,20.0,24.42,24.392,23.66226444]
[1673853171969,20.0,24.42,24.393,20.0]
[1673853172179,20.0,24.42,24.394,20.0]
[1673853172421,79.53697249,24.438,24.394,20.0]
[1673853172422,79.53697249,24.447,24.41,18.98]
[1673853172609,148.54468625,24.453,24.42,19.11]
[1673853172610,20.0,24.446,24.42,19.11]
[1673853172937,20.0,24.446,24.421,20.0]
[1673853173123,20.0,24.446,24.421,109.70875554]
[1673853173579,20.0,24.446,24.421,20.0]
[1673853174611,20.0,24.446,24.411,20.0]
[1673853174824,20.0,24.446,24.401,20.0]
[1673853174825,41.46196354,24.446,24.405,20.0]
[1673853175038,20.0,24.444,24.402,20.0]
[1673853175239,20.0,24.444,24.403,20.0]
[1673853175567,20.0,24.444,24.402,20.0]
[1673853175568,19.11,24.44,24.39,19.05]
[1673853175995,20.0,24.438,24.391,20.0]
[1673853176303,19.11,24.43,24.385,119.2247]
[1673853176501,20.0,24.429,24.385,119.2247]
[1673853176718,20.0,24.429,24.387,19.26223951]
[1673853177035,20.0,24.429,24.391,20.0]
[1673853177775,20.0,24.438,24.391,20.0]
[1673853178097,20.0,24.438,24.401,20.0]
[1673853178299,20.0,24.438,24.4,19.11]
[1673853178620,50.92350445,24.437,24.393,20.0]
[1673853178805,20.0,24.436,24.393,20.0]
[1673853179012,19.08,24.43,24.381,20.0]
[1673853179452,41.46196354,24.429,24.381,20.0]
[1673853179667,20.0,24.429,24.385,138.48693951]
[1673853179861,29.46154091,24.428,24.385,119.2247]
[1673853180188,2.68429,24.427,24.38,18.99]
[1673853180384,20.0,24.429,24.391,20.0]
[1673853180807,20.0,24.429,24.391,38.16998934]
[1673853181016,20.0,24.429,24.39,19.11]
[1673853181240,41.98086271,24.428,24.39,19.11]
[1673853181446,20.0,24.427,24.39,19.11]
[1673853181659,20.0,24.427,24.391,20.0]
[1673853181853,20.0,24.427,24.391,38.16998934]
[1673853182062,20.0,24.427,24.4,19.11]
[1673853182270,20.0,24.427,24.401,20.0]
[1673853182483,20.0,24.427,24.402,17.0]
[1673853182706,20.0,24.427,24.403,20.0]
[1673853182911,20.0,24.427,24.404,17.0]
[1673853183332,20.0,24.427,24.405,20.0]
[1673853183542,20.0,24.427,24.403,20.0]
[1673853183753,50.3855752,24.426,24.401,20.0]
[1673853183959,20.0,24.425,24.381,20.0]
[1673853184494,20.0,24.425,24.384,20.0]
[1673853184915,41.98086271,24.424,24.385,18.16998934]
[1673853185113,20.0,24.423,24.386,20.0]
[1673853185323,20.0,24.423,24.385,18.16998934]
[1673853185542,41.98086271,24.422,24.385,18.16998934]
[1673853185753,20.0,24.421,24.384,20.0]
[1673853185951,20.0,24.421,24.385,38.16998934]
[1673853186166,20.0,24.421,24.386,20.0]
[1673853186494,20.0,24.419,24.387,20.0]
[1673853186713,20.0,24.419,24.38,18.99]
[1673853187541,20.0,24.417,24.38,17.99]
[1673853187759,20.0,24.417,24.37,18.99]
[1673853188074,20.0,24.415,24.37,18.99]
[1673853188269,20.0,24.415,24.369,18.16998934]
[1673853188270,19.11,24.41,24.369,18.16998934]
[1673853188483,21.79429,24.41,24.363,20.0]
[1673853188677,21.79429,24.41,24.365,18.16998934]
[1673853188678,232.71203064,24.409,24.365,18.16998934]
[1673853188889,20.0,24.399,24.365,18.16998934]
[1673853189106,20.0,24.399,24.355,20.0]
[1673853189308,20.0,24.399,24.36,19.11]
[1673853189735,30.65694499,24.398,24.362,20.0]
[1673853189943,20.0,24.399,24.355,20.0]
[1673853190149,20.0,24.399,24.357,18.16998934]
[1673853190381,20.0,24.399,24.36,18.95]
[1673853190804,20.0,24.399,24.362,20.0]
[1673853191410,20.0,24.399,24.363,18.16998934]
[1673853191626,20.0,24.409,24.364,20.0]
[1673853191863,20.0,24.409,24.37,19.11]
[1673853192049,40.0,24.4,24.371,20.0]
[1673853192259,40.0,24.4,24.372,20.0]
[1673853192469,40.0,24.4,24.373,20.0]
[1673853192675,40.0,24.4,24.373,38.16998934]
[1673853192901,20.0,24.399,24.373,20.0]
[1673853193221,20.0,24.399,24.343,128.54325507]
[1673853193222,20.0,24.399,24.364,18.16998934]
[1673853193629,20.0,24.399,24.37,18.16998934]
[1673853194782,20.0,24.399,24.371,20.0]
[1673853194988,20.0,24.399,24.366,20.0]
[1673853196272,41.46196354,24.399,24.363,20.0]
[1673853196478,41.46196354,24.399,24.359,18.16998934]
[1673853196479,42.82412937,24.398,24.359,18.16998934]
[1673853196677,20.0,24.399,24.359,18.16998934]
[1673853197010,20.0,24.399,24.34,19.04]
[1673853197011,19.11,24.39,24.34,19.04]
[1673853197323,20.0,24.388,24.343,18.16998934]
[1673853198694,20.0,24.388,24.344,40.0]
[1673853199097,41.46196354,24.388,24.344,20.0]
[1673853199306,2.68429,24.387,24.34,19.04]
[1673853199513,19.08,24.37,24.33,18.93]
[1673853199844,20.0,24.369,24.33,18.93]
[1673853200163,20.0,24.369,24.321,20.0]
[1673853200355,97.6273279,24.368,24.327,17.13978446]
[1673853200566,18.98,24.36,24.327,17.13978446]
[1673853200783,40.0,24.359,24.31,18.98]
[1673853200981,40.0,24.359,24.321,17.13978446]
[1673853201192,57.46812937,24.359,24.321,17.13978446]
[1673853201397,20.0,24.359,24.321,17.13978446]
[1673853201613,20.0,24.359,24.322,20.0]
[1673853201929,20.0,24.359,24.323,17.13978446]
[1673853202154,20.0,24.359,24.324,20.0]
[1673853202366,111.991,24.362,24.33,18.98]
[1673853202770,111.991,24.362,24.331,37.13978446]
[1673853202982,20.0,24.361,24.331,37.13978446]
[1673853203192,20.0,24.361,24.332,34.27956892]
[1673853203409,20.0,24.361,24.334,20.0]
[1673853203612,20.0,24.372,24.335,37.0]
[1673853203836,20.0,24.395,24.335,37.0]
[1673853203837,20.0,24.388,24.34,76.45]
[1673853204048,20.0,24.395,24.34,76.45]
[1673853204049,40.0,24.4,24.38,19.05]
[1673853204362,40.0,24.4,24.39,18.99]
[1673853204558,20.0,24.425,24.391,20.0]
[1673853204893,20.0,24.425,24.392,37.0]
[1673853205074,20.0,24.425,24.393,20.0]
[1673853205288,26.01564164,24.424,24.394,17.0]
[1673853205718,26.01564164,24.424,24.395,20.0]
[1673853206037,26.01564164,24.424,24.396,17.0]
[1673853206038,19.11,24.42,24.396,17.0]
[1673853206255,19.11,24.42,24.37,19.11]
[1673853206256,20.0,24.419,24.371,20.0]
[1673853206442,18.98,24.41,24.372,20.0]
[1673853206653,20.0,24.409,24.373,20.0]
[1673853206863,53.70297498,24.409,24.373,20.0]
[1673853207079,97.41979349,24.409,24.375,20.0]
[1673853207308,33.70297498,24.408,24.376,20.0]
[1673853207495,20.0,24.407,24.376,20.0]
[1673853208558,69.26348518,24.407,24.376,20.0]
[1673853208760,41.65718492,24.406,24.372,20.0]
[1673853209092,41.65718492,24.406,24.373,20.0]
[1673853209093,20.0,24.405,24.373,20.0]
[1673853209403,58.18890825,24.405,24.374,20.0]
[1673853210341,58.18890825,24.405,24.372,20.0]
[1673853210662,38.18890825,24.405,24.372,20.0]
[1673853210881,20.0,24.409,24.372,20.0]
[1673853211068,20.0,24.413,24.373,20.0]
[1673853211297,20.0,24.413,24.374,20.0]
[1673853211740,59.10160358,24.413,24.375,20.0]
[1673853212048,20.0,24.411,24.377,20.0]
[1673853212259,20.0,24.411,24.378,20.0]
[1673853212662,20.0,24.411,24.378,37.13978446]
[1673853212870,20.0,24.411,24.379,54.13978446]
[1673853213079,20.0,24.411,24.379,37.0]
[1673853213290,20.0,24.411,24.38,20.0]
[1673853213511,116.0212,24.414,24.381,37.0]
[1673853213720,116.0212,24.414,24.382,20.0]
[1673853213936,116.0212,24.414,24.384,20.0]
[1673853214147,116.0212,24.414,24.385,37.0]
[1673853214349,20.0,24.413,24.386,20.0]
[1673853214663,20.0,24.413,24.388,20.0]
[1673853214875,20.0,24.413,24.387,37.13978446]
[1673853215093,20.0,24.413,24.387,20.0]
[1673853215310,71.20673114,24.412,24.383,17.13978446]
[1673853215519,116.94985671,24.412,24.383,17.13978446]
[1673853215825,96.82085445,24.411,24.37,18.93]
[1673853216046,96.82085445,24.411,24.38,17.13978446]
[1673853216461,40.67240225,24.41,24.38,17.13978446]
[1673853216983,40.67240225,24.41,24.381,20.0]
[1673853217173,31.22766222,24.411,24.382,37.0]
[1673853217387,116.0212,24.414,24.383,20.0]
[1673853217593,116.0212,24.414,24.384,17.0]
[1673853217814,20.0,24.413,24.386,20.0]
[1673853218019,20.0,24.413,24.387,37.0]
[1673853218358,40.73257492,24.412,24.386,16.16806822]
[1673853218542,46.25246557,24.412,24.388,16.16806822]
[1673853218754,116.0212,24.414,24.388,16.16806822]
[1673853219293,117.1036,24.427,24.39,19.11]
[1673853219514,117.1036,24.427,24.4,19.11]
[1673853219708,20.0,24.426,24.401,37.0]
[1673853219908,20.0,24.426,24.401,53.16806822]
[1673853220116,70.83875021,24.426,24.401,17.0]
[1673853220343,29.28225356,24.425,24.39,18.99]
[1673853220555,20.0,24.423,24.391,20.0]
[1673853220980,29.28225356,24.422,24.391,20.0]
[1673853221212,20.0,24.423,24.384,20.0]
[1673853221399,26.59796356,24.422,24.385,20.0]
[1673853221916,20.0,24.421,24.385,20.0]
[1673853222342,20.0,24.421,24.385,36.16806822]
[1673853222760,20.0,24.421,24.386,20.0]
[1673853222974,20.0,24.421,24.39,19.11]
[1673853223292,20.0,24.426,24.392,20.0]
[1673853223486,20.0,24.426,24.393,17.0]
[1673853223696,20.0,24.426,24.394,20.0]
[1673853223915,20.0,24.426,24.395,37.0]
[1673853224327,20.0,24.426,24.397,20.0]
[1673853224535,117.1036,24.427,24.4,18.98]
[1673853224758,117.1036,24.427,24.401,20.0]
[1673853224975,117.1036,24.427,24.403,20.0]
[1673853225178,117.1036,24.427,24.404,20.0]
[1673853225397,20.0,24.426,24.405,17.0]
[1673853225807,20.0,24.426,24.406,20.0]
[1673853226021,20.0,24.435,24.406,20.0]
[1673853226022,20.0,24.435,24.407,17.0]
[1673853226237,20.0,24.435,24.41,18.99]
[1673853226451,20.0,24.439,24.411,17.0]
[1673853226653,20.0,24.449,24.412,20.0]
[1673853226871,20.0,24.449,24.414,20.0]
[1673853227094,20.0,24.449,24.415,17.0]
[1673853227298,20.0,24.449,24.416,20.0]
[1673853227614,20.0,24.449,24.418,20.0]
[1673853227932,20.0,24.449,24.42,20.0]
[1673853228151,20.0,24.464,24.42,39.05]
[1673853228459,20.0,24.464,24.421,37.0]
[1673853228874,20.0,24.452,24.421,37.0]
[1673853229611,20.0,24.452,24.411,64.67999209]
[1673853229813,20.0,24.449,24.41,19.11]
[1673853230132,2.68429,24.448,24.41,19.11]
[1673853230775,2.68429,24.448,24.403,20.0]
[1673853230955,20.0,24.447,24.403,20.0]
[1673853231711,20.0,24.447,24.41,18.93]
[1673853231905,20.0,24.447,24.412,20.0]
[1673853232116,20.0,24.447,24.413,17.0]
[1673853232327,20.0,24.46,24.42,19.11]
[1673853232553,20.0,24.452,24.421,17.0]
[1673853233281,20.0,24.452,24.422,20.0]
[1673853233719,20.0,24.452,24.411,20.0]
[1673853233720,24.14625354,24.451,24.394,20.0]
[1673853233916,20.0,24.449,24.411,20.0]
[1673853234129,20.0,24.449,24.4,18.98]
[1673853234130,2.68429,24.448,24.4,46.94135154]
[1673853234660,2.68429,24.448,24.41,18.98]
[1673853234857,20.0,24.449,24.411,20.0]
[1673853235055,20.0,24.448,24.411,20.0]
[1673853235477,20.0,24.447,24.411,20.0]
[1673853235917,20.0,24.447,24.41,18.98]
[1673853236105,127.6,24.445,24.411,20.0]
[1673853236328,21.46196354,24.446,24.402,20.0]
[1673853236329,18.98,24.44,24.402,20.0]
[1673853236544,18.98,24.44,24.392,20.0]
[1673853236545,127.6,24.438,24.392,20.0]
[1673853236754,20.0,24.436,24.392,20.0]
[1673853238129,2.68429,24.437,24.4,19.11]
[1673853238333,40.0,24.439,24.401,20.0]
[1673853238545,20.0,24.438,24.401,20.0]
[1673853238754,20.0,24.437,24.401,20.0]
[1673853239390,112.5838,24.44,24.401,20.0]
[1673853239590,112.5838,24.44,24.41,18.98]
[1673853239800,112.5838,24.44,24.411,40.0]
[1673853240640,20.0,24.439,24.411,40.0]
[1673853241165,112.5838,24.44,24.411,40.0]
[1673853241597,20.0,24.439,24.411,40.0]
[1673853242123,112.5838,24.44,24.411,40.0]
[1673853242337,147.6,24.459,24.411,40.0]
[1673853242338,129.2971,24.458,24.42,18.93]
[1673853242649,20.0,24.452,24.42,18.93]
[1673853242872,20.0,24.452,24.421,20.0]
[1673853243579,20.0,24.45,24.414,20.0]
[1673853243799,20.0,24.448,24.413,20.0]
[1673853244117,20.0,24.448,24.415,20.0]
[1673853244320,20.0,24.452,24.416,20.0]
[1673853244531,20.0,24.452,24.417,20.0]
[1673853244735,20.0,24.452,24.418,20.0]
[1673853245063,20.0,24.452,24.419,20.0]
[1673853245257,20.0,24.452,24.421,20.0]
[1673853245888,20.0,24.452,24.422,53.44319544]
[1673853246104,20.0,24.452,24.421,20.0]
[1673853246320,20.0,24.451,24.42,20.0]
[1673853246536,20.0,24.45,24.418,20.0]
[1673853246753,20.0,24.449,24.417,20.0]
[1673853247065,20.0,24.448,24.417,36.16806822]
[1673853247468,20.0,24.449,24.417,36.16806822]
[1673853247889,20.0,24.452,24.417,36.16806822]
[1673853248100,20.0,24.452,24.421,20.0]
[1673853248321,20.0,24.46,24.421,20.0]
[1673853248528,20.0,24.458,24.422,53.44319544]
[1673853248752,19.88424312,24.473,24.43,19.11]
[1673853248959,108.5661,24.477,24.431,20.0]
[1673853248960,21.46196354,24.466,24.431,20.0]
[1673853249154,41.46196354,24.465,24.431,20.0]
[1673853249578,20.0,24.465,24.431,36.16806822]
[1673853249789,20.0,24.469,24.432,57.44846055]
[1673853250010,20.0,24.469,24.433,20.0]
[1673853250227,20.0,24.469,24.433,73.61652877]
[1673853250427,20.0,24.469,24.44,19.11]
[1673853250633,20.0,24.475,24.44,19.11]
[1673853250845,20.0,24.475,24.441,83.86941976]
[1673853251052,20.0,24.478,24.45,19.11]
[1673853251264,20.0,24.478,24.451,20.0]
[1673853251470,20.0,24.478,24.451,36.16806822]
[1673853251900,20.0,24.478,24.451,20.0]
[1673853252107,20.0,24.478,24.452,16.16806822]
[1673853252312,20.0,24.478,24.453,20.0]
[1673853252742,20.0,24.488,24.454,53.61652877]
[1673853252935,20.0,24.488,24.455,20.0]
[1673853253149,20.0,24.488,24.455,89.78459699]
[1673853253359,20.0,24.488,24.455,36.16806822]
[1673853254014,20.0,24.488,24.456,16.16806822]
[1673853254331,20.0,24.488,24.457,20.0]
[1673853254727,20.0,24.488,24.457,36.16806822]
[1673853254933,20.0,24.488,24.458,16.16806822]
[1673853255169,20.0,24.488,24.459,20.0]
[1673853255479,41.46196354,24.488,24.459,20.0]
[1673853255793,20.0,24.487,24.44,19.11]
[1673853256006,37.0,24.487,24.441,114.5715]
[1673853256202,21.46196354,24.486,24.441,114.5715]
[1673853256413,21.46196354,24.486,24.441,129.82276276]
[1673853256623,20.0,24.484,24.442,20.0]
[1673853256833,37.0,24.483,24.442,20.0]
[1673853257062,20.0,24.482,24.442,35.25126276]
[1673853257375,20.0,24.48,24.442,35.25126276]
[1673853257587,20.0,24.48,24.442,15.25126276]
[1673853257777,20.0,24.478,24.442,15.25126276]
[1673853258307,21.46196354,24.477,24.444,20.0]
[1673853258514,20.0,24.476,24.445,20.0]
[1673853258727,20.0,24.476,24.443,20.0]
[1673853258943,41.46196354,24.476,24.443,20.0]
[1673853260309,20.0,24.476,24.444,15.25126276]
[1673853260538,20.0,24.478,24.45,19.11]
[1673853260718,20.0,24.477,24.451,40.0]
[1673853260926,20.0,24.477,24.451,55.25126276]
[1673853261138,20.0,24.477,24.452,15.25126276]
[1673853261350,20.0,24.478,24.453,20.0]
[1673853261578,115.9875,24.479,24.454,20.0]
[1673853261772,115.9875,24.479,24.455,20.0]
[1673853261983,115.9875,24.479,24.455,35.25126276]
[1673853262307,20.0,24.478,24.455,72.17182798]
[1673853262519,20.0,24.478,24.456,20.0]
[1673853262715,20.0,24.486,24.457,20.0]
[1673853262924,20.0,24.486,24.458,20.0]
[1673853263145,20.0,24.486,24.459,20.0]
[1673853263349,20.0,24.486,24.458,15.25126276]
[1673853263563,20.0,24.486,24.459,20.0]
[1673853263766,20.0,24.486,24.46,15.25126276]
[1673853264088,20.0,24.486,24.461,20.0]
[1673853264304,20.0,24.486,24.461,56.92056522]
[1673853264500,20.0,24.486,24.462,15.25126276]
[1673853265037,20.0,24.486,24.463,36.92056522]
[1673853265253,20.0,24.486,24.462,15.25126276]
[1673853265876,20.0,24.489,24.463,36.92056522]
[1673853266089,20.0,24.489,24.464,20.0]
[1673853266308,132.2415,24.492,24.465,20.0]
[1673853266512,112.2415,24.492,24.465,76.24516131]
[1673853266731,112.2415,24.492,24.466,76.24516131]
[1673853266927,20.0,24.491,24.466,76.24516131]
[1673853267139,20.0,24.491,24.467,40.99389855]
[1673853267349,20.0,24.493,24.468,20.0]
[1673853267552,20.0,24.493,24.469,20.0]
[1673853267764,20.0,24.5,24.47,20.0]
[1673853267975,20.0,24.5,24.471,20.0]
[1673853268298,20.0,24.5,24.471,76.24516131]
[1673853268500,20.0,24.5,24.472,15.25126276]
[1673853268731,20.0,24.5,24.473,20.0]
[1673853268934,20.0,24.5,24.473,16.42106636]
[1673853269346,20.0,24.5,24.469,20.0]
[1673853269558,20.0,24.5,24.474,15.25126276]
[1673853270201,20.0,24.5,24.469,20.0]
[1673853270393,20.0,24.5,24.47,15.25126276]
[1673853271254,20.0,24.5,24.465,20.0]
[1673853271569,20.0,24.5,24.467,20.0]
[1673853271880,20.0,24.5,24.468,15.25126276]
[1673853272284,20.0,24.5,24.468,56.24516131]
[1673853272503,20.0,24.5,24.465,27.70135154]
[1673853272712,20.0,24.5,24.468,15.25126276]
[1673853272920,20.0,24.5,24.456,27.70135154]
[1673853273136,20.0,24.5,24.457,15.25126276]
[1673853273340,20.0,24.5,24.458,15.25126276]
[1673853273557,20.0,24.5,24.461,35.25126276]
[1673853273972,20.0,24.5,24.462,15.25126276]
[1673853274181,20.0,24.5,24.463,20.0]
[1673853274601,166.68,24.5,24.458,27.70135154]
[1673853274933,18.98,24.49,24.458,27.70135154]
[1673853275159,18.98,24.49,24.44,19.11]
[1673853275341,20.0,24.488,24.44,19.11]
[1673853275541,20.0,24.487,24.444,15.25126276]
[1673853275787,20.0,24.486,24.444,15.25126276]
[1673853275960,19.11,24.48,24.43,19.11]
[1673853276170,20.0,24.479,24.43,19.11]
[1673853276395,20.0,24.477,24.43,19.11]
[1673853276609,20.0,24.476,24.43,19.11]
[1673853276818,20.0,24.476,24.431,14.38628982]
[1673853276819,127.6,24.474,24.431,14.38628982]
[1673853277035,17.0,24.473,24.431,14.38628982]
[1673853277241,20.0,24.472,24.431,14.38628982]
[1673853277432,19.11,24.47,24.431,14.38628982]
[1673853277647,19.11,24.46,24.423,111.7859]
[1673853277863,20.0,24.458,24.425,14.38628982]
[1673853278184,47.82535021,24.459,24.43,18.93]
[1673853278401,47.82535021,24.459,24.431,20.0]
[1673853278604,20.0,24.469,24.431,34.38628982]
[1673853278803,40.0,24.469,24.433,20.0]
[1673853279019,40.0,24.469,24.434,17.0]
[1673853279226,20.0,24.468,24.435,20.0]
[1673853279441,20.0,24.467,24.436,17.0]
[1673853279655,20.0,24.467,24.436,30.52166727]
[1673853279979,20.0,24.467,24.437,33.52166727]